[Event "FIDE Candidates 2024"]
[Site "Toronto"]
[Date "2024.04.05"]
[Round "3.4"]
[White "Vidit, Santosh Gujrathi"]
[Black "Praggnanandhaa R"]
[Result "0-1"]
[ECO "C70"]
[WhiteElo "2727"]
[BlackElo "2747"]
[Annotator "TA"]
[PlyCount "90"]
[EventDate "2024.04.02"]
[EventType "tourn"]
[EventCountry "CAN"]
[SourceTitle "playchess.com"]
[Source "ChessBase"]
[SourceQuality "1"]
[TimeControl "40/7200:1800+30"]

{[%evp 9,90,47,41,54,37,48,79,64,68,30,27,25,28,5,0,13,7,-8,-25,-22,-27,-17,-10,-15,-9,-46,-48,-27,-34,-26,73,-22,-19,-46,-55,-82,-52,-54,-53,-125,-103,-120,-99,-102,-106,-99,-16,-15,-54,-91,-95,-70,-58,-51,-67,-107,-103,-152,-153,-207,-207,-420,-408,-382,-287,-329,-326,-334,-325,-348,-343,-333,-327,-401,-376,-387,-367,-348,-352,-352,-352,-520,-520]} 1. e4 {[%emt 0:00:51]} e5 {[%emt 0:00:06]} 2. Nf3 {[%emt 0:00:14]} Nc6 {[%emt 0:00:04]} 3. Bb5 {[%emt 0:00:18]} a6 {[%emt 0:00:07]} 4. Ba4 {[%emt 0:00:12]} f5 {[%emt 0:00:32]} 5. d4 {[%emt 0:04:39]} exd4 {[%emt 0:00:18]} 6. e5 {[%emt 0:01:29][%cal Oe1g1]} (6. exf5 Qe7+ 7. Kf1 Qe4 $11) 6... b5 {[%emt 0:00:26]} 7. Bb3 {[%emt 0:00:11][%cal Oe1g1]} Na5 {[%emt 0:00:24]} 8. Nxd4 {[%emt 0:17:25] Strongly threatening 0-0. White is better.} Bb7 {[%emt 0:01:49]} 9. Nxf5 {[%emt 0:04:24]} (9. O-O $5) 9... Nxb3 {[%emt 0:08:56]} 10. axb3 {[%emt 0:01:15] Threatens to win with 0-0.} d6 $1 {[%emt 0:00:32] Black is weak on the dark squares} 11. Qe2 {[%emt 0:22:24]} Qd7 {[%emt 0:07:35]} 12. e6 {[%emt 0:07:53]} Qc6 {[%emt 0:01:16]} 13. Bg5 {[%emt 0:16:06][%cal Of5g7] Threatening mate with Nxg7+!} g6 {[%emt 0:10:17]} (13... Qxg2 14. Nxg7+ Bxg7 15. Qh5+ Kf8 16. Qf7#) 14. Ne3 {[%emt 0:03:11] Repels Qd5} h6 {[%emt 0:08:29][%mdl 1024] Black has compensation.} 15. Bf4 {[%emt 0:00:40]} Ne7 {[%emt 0:06:48]} 16. c4 {[%emt 0:03:15]} b4 {[%emt 0:01:27] Inhibits Nc3.} 17. Qg4 {[%emt 0:03:30][%cal Oe3d5]} Qc5 {[%emt 0:11:52]} 18. O-O {[%emt 0:09:33]} Bg7 {[%emt 0:01:22]} 19. Nd2 {[%emt 0:00:30]} O-O-O {[%emt 0:09:42] [#]} (19... O-O $1 $11) 20. h4 {[%emt 0:01:18]} (20. Nd5 $1 $16 Nxd5 (20... Bxd5 $2 21. Be3 $18) 21. cxd5) 20... Rde8 {[%emt 0:07:03]} (20... Bxb2 {with more complications.} 21. Ra2 Bc3 22. Nd5 Nxd5 23. e7+ Rd7) 21. Rad1 {[%emt 0:02:41][%cal Oe3d5]} Bxb2 {[%emt 0:05:57]} 22. Nd5 {[%emt 0:01:40]} Nxd5 {[%emt 0:01:30]} 23. cxd5 {[%emt 0:00:21]} Bxd5 {[%emt 0:01:03]} (23... Qxd5 24. Nc4 Qxe6 25. Qxe6+ Rxe6 26. Nxb2 $18) 24. e7+ {[%emt 0:00:49] [#]} (24. Qxg6 $2 Rhg8 $19 (24... Bxe6 $2 25. Qb1 $19) (24... Rxe6 $2 25. Qf5 $19) (24... Bxe6 $2 25. Qb1 $19) (24... Rxe6 $2 25. Qf5 $19)) ({White should try} 24. Rfe1 $1 $15) 24... Kb8 $1 $17 {[%emt 0:02:59]} 25. Be3 {[%emt 0:02:35]} (25. Qxg6 $2 Rhg8 $19 (25... Rxe7 $2 26. Qd3 $19) (25... Rxe7 $2 26. Qd3 $19)) 25... Qb5 {[%emt 0:01:08]} 26. Nc4 {[%emt 0:00:49]} Bc3 {[%emt 0:01:59] A strong pair of Bishops.} 27. Bd4 {[%emt 0:01:12] Prevents Rxe7} (27. Nxd6 $2 cxd6 28. Qg3 Qc6 $19 (28... Bxb3 29. Rxd6 Be5 30. Rb6+ $11)) 27... Rhg8 {[%emt 0:07:33] Dancing on a razor blade.} (27... Rh7 $17 28. Bxc3 bxc3 29. Qxg6 (29. Qd4 $2 c2 $17) 29... Rhxe7 (29... Rexe7 30. Nxd6 Qc6 31. Qf5 $11) 30. Nxd6 Qc6 31. Rxd5 c2) 28. Bxc3 $1 $11 {[%emt 0:01:06]} bxc3 {[%emt 0:00:02]} 29. Qd4 {[%emt 0:04:27][%csl LRc3,LRd5] Repels Rxe7} Bb7 {[%emt 0:00:04]} 30. Qxc3 {[%emt 0:00:43]} Rxe7 {[%emt 0:00:45]} 31. Na5 {[%emt 0:00:06]} Re5 {[%emt 0:02:57]} (31... Re4 {simplifies} 32. Rc1 Qb6 33. Nxb7 Qxb7 34. Qg3 Rb4) 32. b4 {[%emt 0:00:04]} g5 {[%emt 0:00:41]} 33. h5 {[%emt 0:00:18]} (33. Nxb7 $142 Qxb7 34. Qc4) 33... g4 {[%emt 0:00:08]} 34. Rfe1 {[%emt 0:00:28]} (34. Rc1 $17 {was called for.} Qb6 35. Nxb7 Kxb7 36. Rc2) 34... g3 $40 {[%emt 0:01:30][%mdl 128] ( -> ...gxf2+). Black wants a kill.} (34... Rxh5 35. Nxb7 Qxb7 36. Qc4 $17) 35. Nxb7 $2 {[%emt 0:01:03]} (35. Rxe5 {was the only chance.} gxf2+ (35... Qxe5 36. Qxe5 gxf2+ 37. Kxf2 $15) 36. Kxf2 dxe5 (36... Qxe5 37. Qxe5 dxe5 38. g3 $17) (36... Rxg2+ 37. Ke1 $17) 37. Nxb7 Qxb7 38. g3) 35... gxf2+ {[%emt 0:02:05]} (35... Kxb7 36. Rxe5 Qxe5 37. Qxe5 dxe5 38. fxg3 $11) (35... Qxb7 36. Qf3 gxf2+ (36... Qxb4 37. Rxe5 gxf2+ 38. Kxf2 $17) (36... Qxf3 $2 37. gxf3 Rxh5 38. fxg3 $19) 37. Kxf2 Qb6+ (37... Qxb4 $2 38. Rb1 $18) 38. Kf1 $19) 36. Kxf2 {[%emt 0:00:01] And now Rxe5 would win.} Qxb7 {[%emt 0:00:07]} 37. Qf3 {[%emt 0:01:26]} Reg5 {[%emt 0:03:46]} (37... Qxb4 $2 {perishes.} 38. Rb1 $18) 38. Qxb7+ {[%emt 0:00:42]} Kxb7 {[%emt 0:00:01][%mdl 4096] Endgame. KRR-KRR} 39. g4 {[%emt 0:00:02]} Rxg4 {[%emt 0:00:14]} 40. Re6 {[%emt 0:00:00]} Rh4 {[%emt 0:00:00]} ({Don't do} 40... Rxb4 41. Rxh6 a5 42. Rh7 $19) 41. Rxh6 {[%emt 0:04:14]} Rg5 {[%emt 0:05:21]} ({Not} 41... Rxb4 42. Rh7 $17) 42. Rh7 {[%emt 0:00:18]} Rhxh5 {[%emt 0:01:28]} 43. Rd7 {[%emt 0:00:39]} Kc8 {[%emt 0:00:09]} 44. Re7 {[%emt 0:00:04]} Re5 {[%emt 0:00:05]} 45. Rg7 {[%emt 0:00:06]} (45. Rf7 {was the only defense.}) 45... Rhf5+ {[%emt 0:00:05] Weighted Error Value: White=0.25 (precise) /Black=0.11 (very precise) .  Mistake:       	White=6     	Black=2      Inaccurate:     	White=6     	Black=1      OK:         	White=10    	Black=16     Best:        	White=2     	Black=7      Strong:       	White=1     	Black=2} 0-1

[Event "FIDE Candidates 2024"]
[Site "Toronto"]
[Date "2024.04.09"]
[Round "5.4"]
[White "Vidit, Santosh Gujrathi"]
[Black "Caruana, Fabiano"]
[Result "1/2-1/2"]
[ECO "B30"]
[WhiteElo "2727"]
[BlackElo "2803"]
[Annotator "TA"]
[PlyCount "60"]
[EventDate "2024.04.02"]
[EventType "tourn"]
[EventCountry "CAN"]
[SourceTitle "playchess.com"]
[Source "ChessBase"]
[SourceQuality "1"]
[TimeControl "40/7200:1800+30"]

{[%evp 9,60,25,28,30,30,15,25,3,16,18,21,26,24,0,10,0,16,25,35,22,38,42,86,78,69,84,78,76,84,67,75,68,57,34,81,77,179,165,370,360,382,366,337,0,0,0,0,0,0,0,0,0,0]} 1. e4 {[%emt 0:00:41]} c5 {[%emt 0:00:13]} 2. Nf3 {[%emt 0:00:12]} Nc6 {[%emt 0:00:08]} 3. Bb5 {[%emt 0:00:18]} Nf6 {[%emt 0:00:07]} 4. Bxc6 {[%emt 0:01:06]} dxc6 {[%emt 0:00:11]} 5. d3 {[%emt 0:00:14]} Bg4 {[%emt 0:00:18][%cal Oc5c4,Bc8g4,Bg4h5,Bh5g6][%mdl 32]} 6. h3 {[%emt 0:03:40]} Bh5 {[%emt 0:18:59]} 7. Bf4 {[%emt 0:19:08]} c4 {[%emt 0:00:00]} 8. Nc3 {[%emt 0:01:02] White has an edge.} cxd3 {[%emt 0:00:00]} 9. cxd3 {[%emt 0:00:45]} e6 {[%emt 0:00:00]} 10. g4 {[%emt 0:15:56]} Bg6 {[%emt 0:00:00]} 11. Qb3 {[%emt 0:03:51]} Qb6 {[%emt 0:00:00]} 12. Be3 {[%emt 0:04:17]} Qc7 {[%emt 0:00:00]} 13. O-O-O {[%emt 0:14:27]} Nd7 {[%emt 0:05:55]} 14. Nh4 {[%emt 0:07:03]} Bd6 {[%emt 0:24:10]} 15. Kb1 {[%emt 0:01:53]} a5 {[%emt 0:05:09]} 16. Nxg6 {[%emt 0:10:28]} hxg6 {[%emt 0:00:05]} 17. d4 {[%emt 0:00:05][%cal Bd3d4,Bd4c5][%mdl 32] White is more active.} a4 {[%emt 0:13:15]} 18. Nxa4 {[%emt 0:01:06]} b5 {[%emt 0:01:36]} 19. Nc5 {[%emt 0:06:26]} Nxc5 {[%emt 0:07:05]} 20. dxc5 {[%emt 0:00:04]} Be7 {[%emt 0:02:41]} 21. h4 {[%emt 0:02:46]} Ra4 {[%emt 0:05:02]} (21... Qa7 $14 {is superior.}) 22. Bd4 {[%emt 0:04:06]} e5 {[%emt 0:06:59]} (22... Qf4 $16 {keeps fighting.} 23. f3 (23. Bxg7 Rh7 $17) 23... O-O) 23. Qg3 $1 $18 {[%emt 0:01:59]} Qa7 $2 {[%emt 0:11:44]} (23... f6 {might work better.}) 24. Qxe5 {[%emt 0:02:34]} Rxa2 {[%emt 0:00:04]} 25. Qxg7 {[%emt 0:03:39]} Rf8 {[%emt 0:00:04] [#]} 26. Qe5 $2 {[%emt 0:00:30]} (26. Kc2 $1 $18) 26... Qa4 $1 $36 {[%emt 0:03:12][%csl Ga4][%cal Ra2a1][%mdl 2048] Black is more active. The position is equal.} 27. Qb8+ {[%emt 0:00:42]} (27. Kc1 $2 f6 28. Qe6 (28. Qb8+ $2 Kf7 $19) 28... Ra1+ 29. Kd2 Qxd4+ 30. Ke2 Rxd1 (30... Qxb2+ 31. Rd2 $15) 31. Rxd1 Qc4+ (31... Qxb2+ $2 32. Kf1 $19) (31... Qxc5 $2 32. b3 $19) 32. Qxc4 bxc4 $19) 27... Bd8 {[%emt 0:00:04][%csl Ga4][%cal Ra2a1]} 28. Qe5+ {[%emt 0:00:19]} Be7 {[%emt 0:00:43][%csl Ga4][%cal Ra2a1]} 29. Qb8+ {[%emt 0:01:25]} ({Wrong is} 29. Kc1 $2 f6 30. Qe6 (30. Qb8+ $2 Kf7 $19) 30... Ra1+ 31. Kd2 Qxd4+ 32. Ke2 Rxd1 (32... Qxb2+ 33. Rd2 $15) 33. Rxd1 Qc4+ (33... Qxb2+ $2 34. Kf1 $19) (33... Qxc5 $2 34. b3 $19) 34. Qxc4 bxc4 $19) 29... Bd8 {[%emt 0:00:05][%csl Ga4][%cal Ra2a1] [#]} 30. Qe5+ {[%emt 0:00:19]} Be7 {[%emt 0:02:45] Weighted Error Value: White=0.19 (very precise) /Black=0.19 (very precise) .  Missed win:     	White=1     	---        Mistake:       	---       	Black=3      Inaccurate:     	---       	Black=1      OK:         	White=6     	Black=11     Best:        	White=4     	Black=5      Strong:       	White=1     	Black=1} 1/2-1/2

[Event "FIDE Candidates 2024"]
[Site "Toronto"]
[Date "2024.04.10"]
[Round "6.3"]
[White "Vidit, Santosh Gujrathi"]
[Black "Firouzja, Alireza"]
[Result "1-0"]
[ECO "B57"]
[WhiteElo "2727"]
[BlackElo "2760"]
[Annotator "TA"]
[PlyCount "79"]
[EventDate "2024.04.02"]
[EventType "tourn"]
[EventCountry "CAN"]
[SourceTitle "playchess.com"]
[Source "ChessBase"]
[SourceQuality "1"]
[TimeControl "40/7200:1800+30"]

{[%evp 14,79,35,21,29,33,36,0,4,5,56,47,71,72,364,364,377,332,326,333,336,325,304,220,224,226,257,275,293,281,285,236,258,270,285,294,288,283,343,363,367,351,340,364,378,387,493,480,460,467,452,431,447,452,464,435,752,723,725,686,798,810,812,810,1134,1125,1086,1101]} 1. e4 {[%emt 0:00:37]} c5 {[%emt 0:00:04]} 2. Nf3 {[%emt 0:00:14]} d6 {[%emt 0:00:05]} 3. d4 {[%emt 0:00:25]} cxd4 {[%emt 0:00:06]} 4. Nxd4 {[%emt 0:00:06]} Nf6 {[%emt 0:00:05]} 5. Nc3 {[%emt 0:00:12]} Nc6 {[%emt 0:00:04]} 6. Bc4 {[%emt 0:00:25]} Qb6 {[%emt 0:00:57]} 7. Nb3 {[%emt 0:00:31]} e6 {[%emt 0:00:43]} 8. Bf4 {[%emt 0:00:48]} Qd8 {[%emt 0:00:40]} 9. Qd2 {[%emt 0:09:41]} a6 {[%emt 0:00:11]} 10. a3 {[%emt 0:15:59]} b5 {[%emt 0:03:40] The position is equal.} 11. Be2 {[%emt 0:00:04]} Bb7 {[%emt 0:00:41]} ({Black should try} 11... Be7 $11) 12. O-O-O $14 {[%emt 0:05:41][%cal Rf4d6]} Qb6 {[%emt 0:05:43]} 13. g4 {[%emt 0:16:16] White is more active.} (13. Bxd6 O-O-O 14. Qf4 Rxd6 15. Rxd6 Bxd6 16. Qxd6 Qxf2 $14) 13... Qxf2 $2 {[%emt 0:07:16][%mdl 8192] [#] Loses the game.} (13... h6 $16) 14. e5 $1 $18 {[%emt 0:17:01][%mdl 512]} Nd7 {[%emt 0:07:24]} 15. exd6 {[%emt 0:04:01] Be3 is the strong threat.} Qb6 {[%emt 0:07:05]} 16. Be3 {[%emt 0:16:41]} Qd8 {[%emt 0:00:12]} 17. Rhf1 {[%emt 0:04:27]} Nce5 {[%emt 0:03:19]} 18. Qd4 {[%emt 0:00:58]} Rc8 {[%emt 0:02:41]} 19. Qa7 {[%emt 0:02:51]} Bc6 {[%emt 0:04:43]} 20. Qxa6 {[%emt 0:01:35]} Ra8 {[%emt 0:01:42]} 21. Ba7 {[%emt 0:02:05]} g6 {[%emt 0:03:53]} 22. Bxb5 {[%emt 0:04:25]} Bh6+ {[%emt 0:00:42]} 23. Kb1 {[%emt 0:00:02]} Bxb5 {[%emt 0:00:55]} 24. Nxb5 {[%emt 0:00:04] [#] Hoping for Nc7+.} (24. Qxb5 $2 {loses.} Rxa7 25. h4 O-O $19 (25... Qxh4 $2 26. Rh1 $17) (25... Nxg4 26. Qb4 $15)) 24... O-O {[%emt 0:00:07]} 25. Nc7 {[%emt 0:01:06]} Nxg4 {[%emt 0:00:42]} 26. Nxa8 {[%emt 0:00:36]} Qxa8 {[%emt 0:00:08]} 27. Qe2 {[%emt 0:00:09] Repels Ne3} Qxa7 {[%emt 0:00:08]} 28. Qxg4 {[%emt 0:00:02]} Bg7 {[%emt 0:00:22]} 29. Qc4 {[%emt 0:00:34]} Qb7 {[%emt 0:07:25]} 30. Qc7 {[%emt 0:01:21] White is clearly winning.} Qb5 {[%emt 0:00:06]} 31. Rf4 {[%emt 0:00:37]} Qe2 {[%emt 0:04:05]} 32. Rd2 {[%emt 0:00:45]} Qe5 {[%emt 0:03:29][%csl Gg7][%cal Re5b2]} 33. Rfd4 {[%emt 0:00:08]} Nf6 {[%emt 0:00:05]} 34. Qc5 {[%emt 0:03:41]} Nd5 {[%emt 0:00:23]} (34... Ne4 $142 35. Qxe5 Nxd2+ 36. Rxd2 Bxe5) 35. Ka2 {[%emt 0:00:39]} Qf6 {[%emt 0:02:05]} 36. c3 {[%emt 0:00:59]} Bh6 {[%emt 0:00:57]} 37. Rxd5 {[%emt 0:00:29]} exd5 {[%emt 0:00:05]} 38. Rxd5 {[%emt 0:00:06]} Bf4 {[%emt 0:00:22]} 39. d7 {[%emt 0:00:12]} Rd8 {[%emt 0:00:09]} 40. Nd4 {[%emt 0:00:00] Weighted Error Value: White=0.12 (very precise) /Black=0.32.  Loses game:     	---       	Black=1      Mistake:       	---       	Black=2      Inaccurate:     	White=1     	---        OK:         	White=13    	Black=9      Best:        	White=3     	Black=2      Brilliant:      	White=1     	---} 1-0

[Event "FIDE Candidates 2024"]
[Site "Toronto"]
[Date "2024.04.13"]
[Round "8.2"]
[White "Vidit, Santosh Gujrathi"]
[Black "Gukesh D"]
[Result "0-1"]
[ECO "C55"]
[WhiteElo "2727"]
[BlackElo "2743"]
[Annotator "TA"]
[PlyCount "76"]
[EventDate "2024.04.02"]
[EventType "tourn"]
[EventCountry "CAN"]
[SourceTitle "playchess.com"]
[Source "ChessBase"]
[SourceQuality "1"]
[TimeControl "40/7200:1800+30"]

{[%evp 9,76,21,36,15,33,18,25,7,21,8,35,0,0,0,0,-40,-21,-21,-19,-34,-37,-39,-29,-51,-46,-40,-46,-52,-52,-73,-57,-97,-83,-94,-89,-119,-105,-116,-112,-112,-116,-123,-127,-119,-97,-100,-115,-108,-129,-331,-319,-1253,-1242,-29989,-29990,-29990,-29991,-29991,-29992,-29993,-29994,-29994,-29995,-29996,-29997,-29997,-29998,-29998,-29999]} 1. e4 {[%emt 0:00:46]} e5 {[%emt 0:00:06]} 2. Nf3 {[%emt 0:00:13]} Nc6 {[%emt 0:00:06]} 3. Bc4 {[%emt 0:00:16]} Nf6 {[%emt 0:00:11]} 4. d3 {[%emt 0:00:14]} a6 {[%emt 0:00:06]} 5. O-O {[%emt 0:19:39]} h6 {[%emt 0:00:07]} 6. a4 {[%emt 0:08:18]} Bc5 {[%emt 0:01:07]} 7. Be3 {[%emt 0:02:58]} d6 {[%emt 0:00:36]} 8. Nbd2 {[%emt 0:02:27] White has an edge.} O-O {[%emt 0:10:38]} 9. c3 {[%emt 0:01:20]} Re8 {[%emt 0:12:35]} 10. b4 {[%emt 0:26:41][%cal Bb2b4,Bb4b5][%mdl 32]} Bxe3 {[%emt 0:00:13]} 11. fxe3 {[%emt 0:00:02]} Be6 {[%emt 0:02:01]} 12. b5 {[%emt 0:00:27]} Nb8 {[%emt 0:03:26]} 13. Bxe6 {[%emt 0:09:55]} Rxe6 {[%emt 0:00:10]} 14. Qc2 {[%emt 0:01:06]} Nbd7 {[%emt 0:01:15]} 15. d4 {[%emt 0:01:17]} Qe8 {[%emt 0:04:27]} 16. Rae1 {[%emt 0:00:45]} axb5 {[%emt 0:02:31]} 17. axb5 {[%emt 0:00:02]} Ra5 {[%emt 0:00:34]} 18. c4 {[%emt 0:05:15]} Qa8 {[%emt 0:14:54]} 19. h3 {[%emt 0:00:21]} Re8 {[%emt 0:02:30]} 20. Kh2 {[%emt 0:02:13]} b6 {[%emt 0:07:30]} (20... Ra2 {is more complex.} 21. Qc3 Qa3 22. Nb1 Qb2) 21. Rf2 {[%emt 0:01:24]} Ra2 {[%emt 0:02:27]} 22. Qd3 {[%emt 0:02:26]} Ra3 {[%emt 0:05:38] Black has more active pieces.} 23. Qb1 {[%emt 0:05:39]} Qa4 {[%emt 0:11:44]} 24. Nh4 {[%emt 0:00:10]} Ra8 {[%emt 0:01:43]} 25. Nf5 {[%emt 0:00:44]} Kf8 {[%emt 0:03:05] Dodges Ne7} 26. Ref1 {[%emt 0:00:42][%cal Of5h6]} Ra1 {[%emt 0:00:55]} 27. Qd3 {[%emt 0:00:25]} Qb4 {[%emt 0:04:40]} 28. Rxa1 {[%emt 0:11:53]} Rxa1 {[%emt 0:00:03]} 29. c5 $2 {[%emt 0:01:42] [#] Loses the game.} bxc5 $19 {[%emt 0:02:48]} (29... dxc5 30. Nf3 c4 31. Qc2 Qxb5 32. Ng3 $19) 30. Nc4 $2 {[%emt 0:00:03]} (30. Nf3 g6 31. Ng3) 30... Qe1 {[%emt 0:01:39]} ({Weaker is} 30... Qxb5 31. dxe5 dxe5 32. Rb2 $15) 31. Re2 {[%emt 0:00:10]} Qg1+ {[%emt 0:02:30] Black mates.} 32. Kg3 {[%emt 0:00:01]} Nh5+ {[%emt 0:01:44]} 33. Kh4 {[%emt 0:00:16]} Ndf6 {[%emt 0:00:09][%csl Gh6][%cal Rg7g5]} 34. Nxh6 {[%emt 0:00:26]} Qh2 {[%emt 0:01:11][%csl Gh5][%cal Rh2g3]} 35. Nf5 {[%emt 0:00:46]} Rf1 {[%emt 0:00:33]} 36. g4 {[%emt 0:05:12] [#]} Rxf5 $1 {[%emt 0:00:26][%mdl 512]} 37. exf5 {[%emt 0:00:16]} Qg3+ {[%emt 0:00:04]} 38. Kg5 {[%emt 0:00:03]} Nh7+ {[%emt 0:00:05] Weighted Error Value: White=0.63/Black=0.05 (flawless) .  Loses game:     	White=1     	---        Mistake:       	White=1     	---        Inaccurate:     	White=5     	Black=1      OK:         	White=4     	Black=13     Best:        	---       	Black=1} 0-1

[Event "FIDE Candidates 2024"]
[Site "Toronto"]
[Date "2024.04.14"]
[Round "9.1"]
[White "Vidit, Santosh Gujrathi"]
[Black "Nakamura, Hikaru"]
[Result "1-0"]
[ECO "C55"]
[WhiteElo "2727"]
[BlackElo "2789"]
[Annotator "TA"]
[PlyCount "71"]
[EventDate "2024.04.02"]
[EventType "tourn"]
[EventCountry "CAN"]
[SourceTitle "playchess.com"]
[Source "ChessBase"]
[SourceQuality "1"]
[TimeControl "40/7200:1800+30"]

{[%evp 10,71,41,20,36,33,38,36,35,31,35,21,16,18,13,10,24,10,26,0,0,9,22,26,21,0,17,0,0,2,6,18,16,27,66,29,79,18,26,20,92,86,84,101,111,105,131,131,125,134,136,143,223,212,219,216,213,205,29969,29972,29983,29984,29984,29985]} 1. e4 {[%emt 0:00:41]} e5 {[%emt 0:00:07]} 2. Nf3 {[%emt 0:00:11]} Nc6 {[%emt 0:00:04]} 3. Bc4 {[%emt 0:00:14]} Nf6 {[%emt 0:00:09]} 4. d3 {[%emt 0:00:12]} h6 {[%emt 0:00:15]} 5. c3 {[%emt 0:00:37]} d6 {[%emt 0:00:13]} 6. O-O {[%emt 0:00:22]} g5 {[%emt 0:01:28]} 7. Nbd2 {[%emt 0:05:47]} Bg7 {[%emt 0:02:05]} 8. Bb3 {[%emt 0:03:31]} a5 {[%emt 0:00:29] White is slightly better.} 9. a4 {[%emt 0:01:47]} O-O {[%emt 0:02:20]} 10. Nc4 {[%emt 0:07:16]} Be6 {[%emt 0:00:51]} 11. Re1 {[%emt 0:04:46]} Re8 {[%emt 0:00:32]} 12. h3 {[%emt 0:04:56]} Qd7 {[%emt 0:02:10]} 13. Bd2 {[%emt 0:04:09]} Rad8 {[%emt 0:02:18]} 14. Qc2 {[%emt 0:05:50]} b6 {[%emt 0:11:43]} 15. Ba2 {[%emt 0:10:43]} Nh5 {[%emt 0:26:57]} 16. Ne3 {[%emt 0:04:03]} Bxa2 {[%emt 0:01:34]} 17. Rxa2 {[%emt 0:00:06]} Ne7 {[%emt 0:00:03]} 18. d4 {[%emt 0:07:50]} exd4 {[%emt 0:05:03]} 19. cxd4 {[%emt 0:01:13]} d5 {[%emt 0:01:46]} 20. e5 {[%emt 0:02:17]} Rc8 {[%emt 0:05:02]} 21. Ra3 {[%emt 0:05:01]} c5 {[%emt 0:00:46]} 22. dxc5 {[%emt 0:01:30] White is more active.} Rxc5 {[%emt 0:03:41]} (22... Nf4 $11) 23. Qd1 {[%emt 0:08:00]} (23. Qb3 $16) 23... Nf4 $11 {[%emt 0:01:40]} 24. b4 $36 {[%emt 0:04:33][%mdl 2048] White has good play.} Rcc8 {[%emt 0:10:27]} (24... axb4 $11 {keeps the balance.} 25. Bxb4 Rcc8) 25. bxa5 $16 {[%emt 0:01:14]} bxa5 {[%emt 0:01:16]} 26. Bxa5 {[%emt 0:06:08]} Nc6 {[%emt 0:06:28]} 27. Bc3 {[%emt 0:00:37]} Nxe5 {[%emt 0:00:27]} 28. Bxe5 {[%emt 0:01:59]} Bxe5 {[%emt 0:00:15] [#]} 29. Nxd5 {[%emt 0:01:12][%mdl 512]} Nxd5 {[%emt 0:14:25]} (29... Qd6 30. Nxe5) 30. Nxe5 {[%emt 0:00:28]} Qe6 {[%emt 0:00:01]} (30... Qd6 $16) 31. Rd3 {[%emt 0:05:15][%cal Ba3d3,Bd3d6,Bd6h6,Bh6g6][%mdl 32]} Nf4 {[%emt 0:01:24]} 32. Rd6 {[%emt 0:00:26]} Qa2 {[%emt 0:00:49]} 33. Rxh6 {[%emt 0:03:27] [#] Qg4 would now be deadly.} Qb2 $2 {[%emt 0:04:23]} (33... Rb8 $18) 34. Qd7 {[%emt 0:04:45][%csl Ge5][%cal Rd7f7] White mates.} Qb3 {[%emt 0:06:12]} 35. Qf5 {[%emt 0:00:40]} Ng6 {[%emt 0:00:58]} 36. Rxg6+ {[%emt 0:01:32] Weighted Error Value: White=0.07 (flawless) /Black=0.34.  Mistake:       	White=1     	Black=4      Inaccurate:     	White=2     	Black=1      OK:         	White=10    	Black=10     Best:        	White=2     	---        Brilliant:      	White=1     	---} 1-0